[Event "Netanya Open 2019"]
[Site "Netanya"]
[Date "2019.07.01"]
[Round "8.14"]
[White "Rechlis, Gad"]
[Black "Globus, Or"]
[Result "1/2-1/2"]
[ECO "C78"]
[WhiteElo "2506"]
[BlackElo "2352"]
[Annotator "ChessBase"]
[PlyCount "74"]
[EventDate "2019.06.23"]
[EventType "swiss"]
[EventCountry "ISR"]
[SourceTitle "playchess.com"]
[Source "ChessBase"]
[SourceQuality "1"]
[TimeControl "40/5400+30:1800+30"]

1. e4 {[%emt 0:01:47]} e5 {[%emt 0:00:00]} 2. Nf3 {[%emt 0:00:53]} Nc6 {[%emt 0:00:00]} 3. Bb5 {[%emt 0:00:06]} a6 {[%emt 0:00:04]} 4. Ba4 {[%emt 0:02:36]} Nf6 {[%emt 0:00:15]} 5. O-O {[%emt 0:02:16]} b5 {[%emt 0:00:27]} 6. Bb3 {[%emt 0:00:05]} Bc5 {[%emt 0:00:05]} 7. a4 {[%emt 0:01:18]} Rb8 {[%emt 0:00:43]} 8. c3 {[%emt 0:12:39]} d6 {[%emt 0:00:11]} 9. d3 {[%emt 0:12:10]} h6 {[%emt 0:00:30]} 10. Nbd2 {[%emt 0:01:53]} O-O {[%emt 0:01:20]} 11. Re1 {[%emt 0:00:12]} Bb6 {[%emt 0:00:18]} 12. Nf1 {[%emt 0:00:34]} Ne7 {[%emt 0:00:23]} 13. Ng3 {[%emt 0:14:23]} Ng6 {[%emt 0:00:11]} 14. a5 {[%emt 0:00:32]} Ba7 {[%emt 0:01:09]} 15. h3 {[%emt 0:01:40]} Re8 {[%emt 0:10:52]} 16. Nf5 {[%emt 0:12:24]} d5 {[%emt 0:13:46]} 17. Bxh6 {[%emt 0:05:46]} gxh6 {[%emt 0:06:21]} 18. Qd2 {[%emt 0:12:38]} Nf4 {[%emt 0:18:23]} 19. Nxh6+ {[%emt 0:05:40]} Kg7 {[%emt 0:08:57]} 20. d4 {[%emt 0:02:40]} Nxe4 {[%emt 0:06:21]} 21. Rxe4 {[%emt 0:00:19]} dxe4 {[%emt 0:00:18]} 22. Nxf7 {[%emt 0:00:13]} Qf6 {[%emt 0:02:06]} 23. dxe5 {[%emt 0:03:12]} Qg6 {[%emt 0:04:04]} 24. Nh4 {[%emt 0:04:53]} Nxh3+ {[%emt 0:01:24]} 25. Kh2 {[%emt 0:00:09]} Qh5 {[%emt 0:02:00]} 26. gxh3 {[%emt 0:00:20]} Qxh4 {[%emt 0:01:23]} 27. Rg1+ {[%emt 0:00:15]} Kf8 {[%emt 0:00:42]} 28. Rg3 {[%emt 0:00:55]} Be6 {[%emt 0:05:21]} 29. Nh8 {[%emt 0:01:18]} Qxh8 {[%emt 0:03:29]} 30. Qf4+ {[%emt 0:00:31]} Ke7 {[%emt 0:00:30]} 31. Bxe6 {[%emt 0:00:13]} Kxe6 {[%emt 0:09:39]} 32. Rg6+ {[%emt 0:01:30]} Ke7 {[%emt 0:01:23]} 33. Qg5+ {[%emt 0:00:00]} Kd7 {[%emt 0:00:08]} 34. Qg4+ {[%emt 0:00:00]} Ke7 {[%emt 0:00:55]} 35. Qg5+ {[%emt 0:00:38]} Kd7 {[%emt 0:00:11]} 36. Qg4+ {[%emt 0:00:34]} Ke7 {[%emt 0:00:03]} 37. Qg5+ {[%emt 0:00:39]} Kd7 {[%emt 0:00:05]} 1/2-1/2

[Event "Netanya Open 2019"]
[Site "Netanya"]
[Date "2019.07.01"]
[Round "8.15"]
[White "Parkhov, Yair"]
[Black "Zanan, Evgeny"]
[Result "1/2-1/2"]
[ECO "E73"]
[WhiteElo "2354"]
[BlackElo "2505"]
[Annotator "ChessBase"]
[PlyCount "42"]
[EventDate "2019.06.23"]
[EventType "swiss"]
[EventCountry "ISR"]
[SourceTitle "playchess.com"]
[Source "ChessBase"]
[SourceQuality "1"]
[TimeControl "40/5400+30:1800+30"]

1. d4 {[%emt 0:00:47]} Nf6 {[%emt 0:00:00]} 2. c4 {[%emt 0:00:05]} g6 {[%emt 0:00:00]} 3. Nc3 {[%emt 0:00:06]} Bg7 {[%emt 0:00:00]} 4. e4 {[%emt 0:00:05]} d6 {[%emt 0:00:02]} 5. Be2 {[%emt 0:00:06]} O-O {[%emt 0:00:05]} 6. Be3 {[%emt 0:00:04]} Nc6 {[%emt 0:00:05]} 7. d5 {[%emt 0:04:28]} Ne5 {[%emt 0:00:10]} 8. Nf3 {[%emt 0:00:28]} Nfg4 {[%emt 0:00:31]} 9. Bd2 {[%emt 0:04:38]} Nxf3+ {[%emt 0:07:56]} 10. Bxf3 {[%emt 0:03:44]} Ne5 {[%emt 0:00:30]} 11. Be2 {[%emt 0:00:07]} e6 {[%emt 0:00:04]} 12. O-O {[%emt 0:01:36]} f5 {[%emt 0:10:06]} 13. f4 {[%emt 0:10:53]} Ng4 {[%emt 0:13:24]} 14. Bxg4 {[%emt 0:11:27]} fxg4 {[%emt 0:00:19]} 15. Be3 {[%emt 0:03:42]} e5 {[%emt 0:03:23]} 16. Qd2 {[%emt 0:00:13]} Bd7 {[%emt 0:01:43]} 17. fxe5 {[%emt 0:04:49]} Bxe5 {[%emt 0:00:57]} 18. Rxf8+ {[%emt 0:04:00]} Qxf8 {[%emt 0:00:24]} 19. Bd4 {[%emt 0:00:22]} Bf4 {[%emt 0:27:26]} 20. Be3 {[%emt 0:04:54]} Be5 {[%emt 0:01:23]} 21. Bd4 {[%emt 0:00:08]} Bf4 {[%emt 0:01:48]} 1/2-1/2

[Event "Netanya Open 2019"]
[Site "Netanya"]
[Date "2019.07.01"]
[Round "8.16"]
[White "Erenberg, Ariel"]
[Black "Gorodetzky, Matan"]
[Result "1-0"]
[ECO "E01"]
[WhiteElo "2434"]
[BlackElo "2303"]
[Annotator "NA"]
[PlyCount "109"]
[EventDate "2019.06.23"]
[EventType "swiss"]
[EventCountry "ISR"]
[SourceTitle "playchess.com"]
[Source "ChessBase"]
[SourceQuality "1"]
[TimeControl "40/5400+30:1800+30"]

1. c4 {[%emt 0:00:00]} e6 {[%emt 0:00:00]} 2. g3 {[%emt 0:00:38]} d5 {[%emt 0:02:57]} 3. Bg2 {[%emt 0:00:20]} Nf6 {[%emt 0:00:29]} 4. Nf3 {[%emt 0:00:17]} c5 {[%emt 0:09:17]} 5. O-O {[%emt 0:02:15]} Nc6 {[%emt 0:03:36]} 6. d4 {[%emt 0:01:30]} cxd4 {[%emt 0:03:37]} 7. Nxd4 {[%emt 0:08:07]} Bc5 {[%emt 0:00:25]} 8. Nxc6 {[%emt 0:00:17]} bxc6 {[%emt 0:00:05]} 9. b3 {[%emt 0:01:46]} O-O {[%emt 0:02:19]} 10. Bb2 {[%emt 0:01:09]} Qe7 {[%emt 0:05:49]} 11. Nd2 {[%emt 0:06:13]} e5 {[%emt 0:15:40]} 12. cxd5 {[%emt 0:04:22]} cxd5 {[%emt 0:00:53]} 13. Nc4 {[%emt 0:00:09]} Bb7 {[%emt 0:16:19]} 14. Nxe5 {[%emt 0:00:33]} Rfe8 {[%emt 0:01:33]} 15. e3 {[%emt 0:09:46]} Ba6 {[%emt 0:04:33]} 16. Re1 {[%emt 0:04:01]} Qd6 {[%emt 0:04:23]} 17. Nd3 {[%emt 0:03:36]} Bb6 {[%emt 0:02:13]} 18. Bxf6 {[%emt 0:07:34]} Qxf6 {[%emt 0:00:56]} 19. Nb4 {[%emt 0:00:51]} Bb7 {[%emt 0:02:09]} 20. Nxd5 {[%emt 0:00:20]} Bxd5 {[%emt 0:00:16]} 21. Bxd5 {[%emt 0:01:27]} Rad8 {[%emt 0:00:09]} 22. Qf3 {[%emt 0:00:10]} Qxf3 {[%emt 0:01:38]} 23. Bxf3 {[%emt 0:00:01]} Rd2 {[%emt 0:00:10]} 24. Re2 {[%emt 0:02:25]} Red8 {[%emt 0:00:24]} 25. Rae1 {[%emt 0:01:25]} Ba5 {[%emt 0:06:11]} 26. Rxd2 {[%emt 0:02:21]} Rxd2 {[%emt 0:00:07]} 27. Re2 {[%emt 0:00:12]} Rd1+ {[%emt 0:00:32]} 28. Kg2 {[%emt 0:00:04]} Rc1 {[%emt 0:01:25]} 29. Bd5 {[%emt 0:04:02]} Kf8 {[%emt 0:00:55]} 30. e4 {[%emt 0:00:55]} Ke7 {[%emt 0:00:42]} 31. f4 {[%emt 0:00:34]} f6 {[%emt 0:05:44]} 32. e5 {[%emt 0:01:29]} fxe5 {[%emt 0:00:15]} 33. fxe5 {[%emt 0:00:12]} Bc3 {[%emt 0:02:24]} 34. Bc4 {[%emt 0:03:18]} Rd1 {[%emt 0:00:34]} 35. e6 {[%emt 0:03:33]} Rd2 {[%emt 0:01:17]} 36. Rxd2 {[%emt 0:01:04]} Bxd2 {[%emt 0:00:01]} 37. Kf3 {[%emt 0:02:38]} Kd6 {[%emt 0:02:05]} 38. Ke4 {[%emt 0:06:57]} Bc3 {[%emt 0:02:03]} 39. g4 {[%emt 0:01:33]} a5 {[%emt 0:03:11]} 40. h4 {[%emt 0:09:50]} Be1 {[%emt 0:01:23]} 41. h5 {[%emt 0:30:41]} h6 {[%emt 0:13:28]} 42. a3 {[%emt 0:00:00]} Bc3 {[%emt 0:02:10]} 43. Bd5 {[%emt 0:00:00]} Bb2 {[%emt 0:02:52]} 44. b4 {[%emt 0:00:00]} a4 {[%emt 0:00:21]} 45. b5 {[%emt 0:00:30]} Bxa3 {[%emt 0:00:46]} 46. b6 {[%emt 0:00:06]} Ke7 {[%emt 0:09:35]} 47. Ba2 {[%emt 0:00:40]} Bc5 {[%emt 0:00:14]} 48. b7 {[%emt 0:00:05]} Bd6 {[%emt 0:00:47]} 49. Kf5 {[%emt 0:00:26]} Kf8 {[%emt 0:00:27]} 50. Kg6 {[%emt 0:02:59]} Be5 {[%emt 0:00:08]} 51. g5 {[%emt 0:03:46]} hxg5 {[%emt 0:03:37]} 52. h6 {[%emt 0:00:00]} gxh6 {[%emt 0:00:42]} 53. Kf5 {[%emt 0:00:02]} Bd6 {[%emt 0:01:50]} 54. Kf6 {[%emt 0:00:14]} Ke8 {[%emt 0:00:15]} 55. e7 {[%emt 0:00:08]} 1-0

[Event "Netanya Open 2019"]
[Site "Netanya"]
[Date "2019.07.01"]
[Round "8.17"]
[White "Shubin, Kirill"]
[Black "Tifferet, Shaked"]
[Result "1-0"]
[ECO "C92"]
[WhiteElo "2426"]
[BlackElo "2249"]
[Annotator "NA"]
[PlyCount "107"]
[EventDate "2019.06.23"]
[EventType "swiss"]
[EventCountry "ISR"]
[SourceTitle "playchess.com"]
[Source "ChessBase"]
[SourceQuality "1"]
[TimeControl "40/5400+30:1800+30"]

1. e4 {[%emt 0:00:00]} e5 {[%emt 0:00:00]} 2. Nf3 {[%emt 0:00:00]} Nc6 {[%emt 0:00:00]} 3. Bb5 {[%emt 0:00:00]} a6 {[%emt 0:00:00]} 4. Ba4 {[%emt 0:00:00]} Nf6 {[%emt 0:00:00]} 5. O-O {[%emt 0:00:00]} Be7 {[%emt 0:00:03]} 6. Re1 {[%emt 0:00:02]} b5 {[%emt 0:00:04]} 7. Bb3 {[%emt 0:00:04]} d6 {[%emt 0:00:04]} 8. c3 {[%emt 0:00:04]} O-O {[%emt 0:00:05]} 9. h3 {[%emt 0:00:04]} Bb7 {[%emt 0:00:12]} 10. d4 {[%emt 0:00:08]} Re8 {[%emt 0:00:05]} 11. Nbd2 {[%emt 0:00:06]} exd4 {[%emt 0:00:04]} 12. cxd4 {[%emt 0:00:08]} Nd7 {[%emt 0:00:04]} 13. Nf1 {[%emt 0:00:13]} Na5 {[%emt 0:00:08]} 14. Bc2 {[%emt 0:00:05]} Bf6 {[%emt 0:00:05]} 15. Bf4 {[%emt 0:00:07]} Nf8 {[%emt 0:00:15]} 16. Ng3 {[%emt 0:01:05]} Ne6 {[%emt 0:00:06]} 17. Bc1 {[%emt 0:00:43]} c5 {[%emt 0:01:17]} 18. d5 {[%emt 0:00:07]} Nd4 {[%emt 0:00:05]} 19. Nxd4 Bxd4 20. Rb1 {[%emt 0:08:09]} Nc4 {[%emt 0:00:09]} 21. b3 {[%emt 0:03:40]} Nb6 {[%emt 0:00:50]} 22. Nf5 {[%emt 0:02:25]} Be5 {[%emt 0:00:11]} 23. Bd2 {[%emt 0:05:50]} b4 {[%emt 0:01:09]} 24. Qf3 {[%emt 0:05:13]} Bc8 {[%emt 0:04:23]} 25. g4 {[%emt 0:03:24]} a5 {[%emt 0:09:16]} 26. Bd3 {[%emt 0:05:12]} a4 {[%emt 0:09:04]} 27. Kh1 {[%emt 0:00:48]} axb3 {[%emt 0:00:30]} 28. axb3 {[%emt 0:00:30]} Bxf5 {[%emt 0:15:07]} 29. gxf5 {[%emt 1:06:23]} Ra2 {[%emt 0:02:58]} 30. Be3 {[%emt 0:00:00]} Qf6 {[%emt 0:20:49]} 31. Rg1 {[%emt 0:00:00]} h6 {[%emt 0:00:13]} 32. Rg2 {[%emt 0:00:00]} Ra1 {[%emt 0:03:25]} 33. Rxa1 {[%emt 0:00:00]} Bxa1 {[%emt 0:00:07]} 34. Rg1 {[%emt 0:00:00]} Ra8 {[%emt 0:03:11]} 35. Qg3 {[%emt 0:00:00]} Be5 {[%emt 0:08:32]} 36. f4 {[%emt 0:03:30]} Bc3 {[%emt 0:00:13]} 37. Bxc5 {[%emt 0:00:00]} Nxd5 {[%emt 0:04:27]} 38. Bf2 {[%emt 0:00:00]} Ne7 {[%emt 0:01:08]} 39. Qg4 {[%emt 0:00:00]} Ra1 {[%emt 0:16:38]} 40. Bb1 {[%emt 0:00:00]} Kf8 {[%emt 0:03:10]} 41. Rd1 {[%emt 0:08:06]} d5 {[%emt 0:12:55]} 42. e5 {[%emt 0:00:00]} Qc6 {[%emt 0:00:06]} 43. Rg1 {[%emt 0:00:00]} d4+ {[%emt 0:03:40]} 44. Kh2 {[%emt 0:00:00]} Ke8 {[%emt 0:07:53]} 45. Qxg7 {[%emt 0:00:00]} Qf3 {[%emt 0:00:12]} 46. Qg3 {[%emt 0:00:00]} Qxg3+ {[%emt 0:01:43]} 47. Kxg3 {[%emt 0:00:00]} f6 {[%emt 0:03:40]} 48. Kf3 {[%emt 0:00:00]} Ra5 {[%emt 0:02:44]} 49. Be4 {[%emt 0:00:00]} Kf7 {[%emt 0:00:59]} 50. Bh4 {[%emt 0:00:00]} fxe5 {[%emt 0:01:14]} 51. f6 {[%emt 0:00:00]} Nc8 {[%emt 0:01:31]} 52. Rg7+ {[%emt 0:00:00]} Kf8 {[%emt 0:00:07]} 53. Rd7 {[%emt 0:00:00]} Rc5 {[%emt 0:01:06]} 54. Bg6 {[%emt 0:00:00]} 1-0

[Event "Netanya Open 2019"]
[Site "Netanya"]
[Date "2019.07.01"]
[Round "8.18"]
[White "Kantsler, Boris"]
[Black "Musyuk, Lior"]
[Result "1-0"]
[ECO "D58"]
[WhiteElo "2420"]
[BlackElo "2190"]
[Annotator "NA"]
[PlyCount "87"]
[EventDate "2019.06.23"]
[EventType "swiss"]
[EventCountry "ISR"]
[SourceTitle "playchess.com"]
[Source "ChessBase"]
[SourceQuality "1"]
[TimeControl "40/5400+30:1800+30"]

1. d4 {[%emt 0:00:00]} Nf6 {[%emt 0:00:00]} 2. c4 {[%emt 0:00:00]} e6 {[%emt 0:00:00]} 3. Nc3 {[%emt 0:00:00]} d5 {[%emt 0:00:00]} 4. Bg5 {[%emt 0:00:00]} Be7 {[%emt 0:00:30]} 5. e3 {[%emt 0:00:00]} h6 {[%emt 0:00:12]} 6. Bh4 {[%emt 0:00:32]} O-O {[%emt 0:00:35]} 7. Nf3 {[%emt 0:00:04]} b6 {[%emt 0:00:26]} 8. Bd3 {[%emt 0:00:06]} Bb7 {[%emt 0:01:22]} 9. O-O {[%emt 0:00:06]} Ne4 {[%emt 0:04:12]} 10. Bg3 {[%emt 0:00:21]} Nxg3 {[%emt 0:11:51]} 11. hxg3 {[%emt 0:00:27]} Nd7 {[%emt 0:05:18]} 12. Qe2 {[%emt 0:01:24]} Nf6 {[%emt 0:05:04]} 13. Rfd1 {[%emt 0:00:57]} Ne4 {[%emt 0:05:43]} 14. Rac1 {[%emt 0:00:49]} a5 {[%emt 0:01:30]} 15. Qc2 {[%emt 0:06:08]} Nxc3 {[%emt 0:02:19]} 16. Qxc3 {[%emt 0:04:34]} c5 {[%emt 0:06:37]} 17. dxc5 {[%emt 0:06:28]} bxc5 {[%emt 0:01:23]} 18. cxd5 {[%emt 0:03:19]} exd5 {[%emt 0:00:21]} 19. Bc4 {[%emt 0:00:39]} d4 {[%emt 0:01:25]} 20. exd4 {[%emt 0:01:55]} Bxf3 {[%emt 0:00:58]} 21. Qxf3 {[%emt 0:02:58]} cxd4 {[%emt 0:01:08]} 22. Bd5 {[%emt 0:00:18]} Rc8 {[%emt 0:03:16]} 23. Rxc8 {[%emt 0:00:22]} Qxc8 {[%emt 0:00:14]} 24. Rxd4 {[%emt 0:00:08]} Qc1+ {[%emt 0:01:58]} 25. Kh2 {[%emt 0:10:29]} Qxb2 {[%emt 0:04:39]} 26. Rf4 {[%emt 0:02:49]} Bf6 {[%emt 0:01:41]} 27. Bb3 {[%emt 0:01:20]} Qc3 {[%emt 0:06:40]} 28. Qh5 {[%emt 0:02:23]} Qe5 {[%emt 0:09:28]} 29. Rf5 {[%emt 0:03:36]} Qb2 {[%emt 0:00:17]} 30. Rxa5 {[%emt 0:05:48]} Qxf2 {[%emt 0:00:14]} 31. Bxf7+ {[%emt 0:00:05]} Kh8 {[%emt 0:00:22]} 32. Rf5 {[%emt 0:00:19]} Qe3 {[%emt 0:02:26]} 33. a4 {[%emt 0:13:11]} Bd4 {[%emt 0:06:22]} 34. Rf1 {[%emt 0:07:14]} Ba7 {[%emt 0:02:52]} 35. a5 {[%emt 0:03:04]} Bd4 {[%emt 0:02:16]} 36. a6 {[%emt 0:01:05]} Ba7 {[%emt 0:00:01]} 37. Qg6 {[%emt 0:12:18]} Qe7 {[%emt 0:07:26]} 38. Qh5 {[%emt 0:03:03]} Qe3 {[%emt 0:02:45]} 39. Qb5 {[%emt 0:07:36]} Bb8 {[%emt 0:04:31]} 40. Rf3 {[%emt 0:00:28]} Qe7 {[%emt 0:00:14]} 41. Be6 {[%emt 0:33:26]} Rxf3 {[%emt 0:30:37]} 42. Qxb8+ {[%emt 0:00:18]} Rf8 {[%emt 0:00:01]} 43. a7 {[%emt 0:00:37]} Qa3 {[%emt 0:00:00]} 44. Bd5 {[%emt 0:00:00]} 1-0

[Event "Netanya Open 2019"]
[Site "Netanya"]
[Date "2019.07.01"]
[Round "8.19"]
[White "Cohen Revivo, Shoham"]
[Black "Veinberg, Nimrod"]
[Result "1/2-1/2"]
[ECO "C45"]
[WhiteElo "2240"]
[BlackElo "2401"]
[Annotator "NA"]
[PlyCount "106"]
[EventDate "2019.06.23"]
[EventType "swiss"]
[EventCountry "ISR"]
[SourceTitle "playchess.com"]
[Source "ChessBase"]
[SourceQuality "1"]
[TimeControl "40/5400+30:1800+30"]

1. e4 {[%emt 0:00:00]} e5 {[%emt 0:00:07]} 2. Nf3 {[%emt 0:00:00]} Nc6 {[%emt 0:00:54]} 3. d4 {[%emt 0:00:00]} exd4 {[%emt 0:00:20]} 4. Nxd4 {[%emt 0:00:07]} Bc5 {[%emt 0:01:09]} 5. Nb3 {[%emt 0:00:32]} Bb6 {[%emt 0:00:17]} 6. Nc3 {[%emt 0:01:01]} a5 {[%emt 0:02:51]} 7. Nd5 {[%emt 0:04:22]} Ba7 {[%emt 0:01:45]} 8. Qg4 {[%emt 0:03:03]} Kf8 {[%emt 0:02:28]} 9. Bg5 {[%emt 0:02:20]} f6 {[%emt 0:01:09]} 10. Be3 {[%emt 0:00:53]} Bxe3 {[%emt 0:06:57]} 11. Nxe3 {[%emt 0:00:07]} d6 {[%emt 0:00:55]} 12. Qd1 {[%emt 0:01:21]} Qe8 {[%emt 0:04:32]} 13. Nd2 {[%emt 0:02:11]} g6 {[%emt 0:02:33]} 14. Bc4 {[%emt 0:01:12]} Ne5 {[%emt 0:02:34]} 15. Be2 {[%emt 0:00:05]} Ne7 {[%emt 0:02:37]} 16. f4 {[%emt 0:00:26]} Nd7 {[%emt 0:02:30]} 17. O-O {[%emt 0:00:42]} Kg7 {[%emt 0:00:05]} 18. c3 {[%emt 0:08:24]} Nc6 {[%emt 0:04:19]} 19. Nd5 {[%emt 0:00:28]} Qd8 {[%emt 0:00:20]} 20. Bd3 {[%emt 0:06:05]} Nc5 {[%emt 0:09:11]} 21. Bc2 {[%emt 0:00:03]} Be6 {[%emt 0:00:36]} 22. Qf3 {[%emt 0:01:10]} Bf7 {[%emt 0:04:14]} 23. Rae1 {[%emt 0:02:14]} Rf8 {[%emt 0:03:52]} 24. Qg3 {[%emt 0:06:10]} Qd7 {[%emt 0:05:40]} 25. h4 {[%emt 0:15:23]} Ne7 {[%emt 0:20:29]} 26. Ne3 {[%emt 0:01:16]} d5 {[%emt 0:01:56]} 27. f5 {[%emt 0:11:00]} dxe4 {[%emt 0:00:07]} 28. Nxe4 {[%emt 0:00:26]} Nxe4 {[%emt 0:00:04]} 29. Bxe4 {[%emt 0:00:05]} Qd6 {[%emt 0:00:17]} 30. Qf3 {[%emt 0:02:38]} Bxa2 {[%emt 0:01:49]} 31. fxg6 {[%emt 0:01:39]} hxg6 {[%emt 0:00:02]} 32. h5 {[%emt 0:00:42]} Qc5 {[%emt 0:01:17]} 33. hxg6 {[%emt 0:01:21]} f5 {[%emt 0:00:28]} 34. Qh5 {[%emt 0:00:52]} Rh8 {[%emt 0:00:23]} 35. Qg5 {[%emt 0:01:10]} Raf8 {[%emt 0:00:26]} 36. Bf3 {[%emt 0:22:19]} Be6 {[%emt 0:01:34]} 37. g3 {[%emt 0:01:57]} Rf6 {[%emt 0:00:47]} 38. Kg2 {[%emt 0:01:33]} Rxg6 {[%emt 0:01:13]} 39. Qxe7+ {[%emt 0:01:00]} Qxe7 {[%emt 0:00:06]} 40. Nxf5+ {[%emt 0:00:01]} Bxf5 {[%emt 0:00:36]} 41. Rxe7+ {[%emt 0:30:12]} Kf6 {[%emt 0:30:24]} 42. Rfe1 {[%emt 0:01:49]} Rhg8 {[%emt 0:02:34]} 43. Rxc7 {[%emt 0:01:06]} Rxg3+ {[%emt 0:00:26]} 44. Kf2 {[%emt 0:00:01]} Rh3 {[%emt 0:02:37]} 45. Rh1 {[%emt 0:00:00]} Rxh1 {[%emt 0:00:00]} 46. Bxh1 {[%emt 0:00:00]} Rh8 {[%emt 0:00:00]} 47. Bg2 {[%emt 0:00:00]} b5 {[%emt 0:00:00]} 48. Rc6+ {[%emt 0:00:00]} Kg5 {[%emt 0:00:00]} 49. Rc5 {[%emt 0:00:00]} Kf4 {[%emt 0:00:00]} 50. Rxb5 {[%emt 0:00:00]} Rh2 {[%emt 0:00:00]} 51. Kg1 {[%emt 0:00:00]} Kg3 {[%emt 0:00:00]} 52. Rxf5 {[%emt 0:00:00]} Rxg2+ {[%emt 0:00:00]} 53. Kf1 {[%emt 0:00:00]} Rxb2 {[%emt 0:00:00]} 1/2-1/2

[Event "Netanya Open 2019"]
[Site "Netanya"]
[Date "2019.07.01"]
[Round "8.20"]
[White "Kuzubov, Yuriy"]
[Black "Lahav, Michal"]
[Result "1-0"]
[ECO "D00"]
[WhiteElo "2671"]
[BlackElo "2178"]
[Annotator "RC"]
[PlyCount "37"]
[EventDate "2019.06.23"]
[EventType "swiss"]
[EventCountry "ISR"]
[SourceTitle "playchess.com"]
[Source "ChessBase"]
[SourceQuality "1"]
[TimeControl "40/5400+30:1800+30"]

1. d4 {[%emt 0:00:00]} Nf6 {[%emt 0:00:00]} 2. Bg5 {[%emt 0:00:00]} e6 {[%emt 0:00:29]} 3. Nd2 {[%emt 0:00:17]} d5 {[%emt 0:01:56]} 4. e3 {[%emt 0:00:24]} b6 {[%emt 0:04:10]} 5. c3 {[%emt 0:01:25]} Be7 {[%emt 0:00:15]} 6. Bd3 {[%emt 0:00:15]} O-O {[%emt 0:00:32]} 7. Qc2 {[%emt 0:01:05]} Ba6 {[%emt 0:03:17]} 8. Bxa6 {[%emt 0:01:09]} Nxa6 {[%emt 0:00:04]} 9. Ngf3 {[%emt 0:00:13]} Nd7 {[%emt 0:03:47]} 10. h4 {[%emt 0:03:06]} Re8 {[%emt 0:06:38]} 11. Qd3 {[%emt 0:11:53]} Nab8 {[%emt 0:00:57]} 12. c4 {[%emt 0:00:16]} dxc4 {[%emt 0:05:16]} 13. Nxc4 {[%emt 0:00:27]} c5 {[%emt 0:03:26]} 14. Nd6 {[%emt 0:21:33]} Rf8 {[%emt 0:02:18]} 15. d5 {[%emt 0:18:24]} exd5 {[%emt 0:05:26]} 16. Qxd5 {[%emt 0:04:08]} Na6 {[%emt 0:03:09]} 17. Nf5 {[%emt 0:01:30]} Nf6 {[%emt 0:03:31]} 18. Qb7 {[%emt 0:00:58]} Nc7 {[%emt 0:04:34]} 19. Rd1 {[%emt 0:00:07]} 1-0

[Event "Netanya Open 2019"]
[Site "Netanya"]
[Date "2019.07.01"]
[Round "8.21"]
[White "Abergel, Thal"]
[Black "Lukin, Elisha"]
[Result "1-0"]
[ECO "A11"]
[WhiteElo "2450"]
[BlackElo "2196"]
[Annotator "ChessBase"]
[PlyCount "87"]
[EventDate "2019.06.23"]
[EventType "swiss"]
[EventCountry "ISR"]
[SourceTitle "playchess.com"]
[Source "ChessBase"]
[SourceQuality "1"]
[TimeControl "40/5400+30:1800+30"]

1. Nf3 {[%emt 0:00:00]} Nf6 {[%emt 0:14:28]} 2. c4 {[%emt 0:00:29]} c6 {[%emt 0:00:48]} 3. g3 {[%emt 0:00:18]} d5 {[%emt 0:00:28]} 4. Bg2 {[%emt 0:00:12]} Bg4 {[%emt 0:03:03]} 5. Ne5 {[%emt 0:06:41]} Bf5 {[%emt 0:01:12]} 6. cxd5 {[%emt 0:01:57]} cxd5 {[%emt 0:00:54]} 7. Nc3 {[%emt 0:01:31]} Nc6 {[%emt 0:01:38]} 8. Qa4 {[%emt 0:03:09]} Bd7 {[%emt 0:00:31]} 9. Nxd7 {[%emt 0:00:29]} Qxd7 {[%emt 0:00:03]} 10. b4 {[%emt 0:05:33]} b5 {[%emt 0:07:49]} 11. Nxb5 {[%emt 0:02:03]} Rb8 {[%emt 0:00:52]} 12. Ba3 {[%emt 0:07:14]} Nxb4 {[%emt 0:36:57]} 13. Bxb4 {[%emt 0:08:46]} Qxb5 {[%emt 0:00:08]} 14. Qxb5+ {[%emt 0:00:05]} Rxb5 {[%emt 0:00:07]} 15. Bc3 {[%emt 0:00:05]} e6 {[%emt 0:04:42]} 16. O-O {[%emt 0:00:15]} Nd7 {[%emt 0:08:48]} 17. Rfb1 {[%emt 0:01:27]} Rxb1+ {[%emt 0:01:13]} 18. Rxb1 {[%emt 0:00:06]} Bc5 {[%emt 0:01:54]} 19. Bxg7 {[%emt 0:08:38]} Rg8 {[%emt 0:00:01]} 20. Bc3 {[%emt 0:00:25]} Rg4 {[%emt 0:00:01]} 21. d4 {[%emt 0:01:38]} Bb6 {[%emt 0:00:47]} 22. e3 {[%emt 0:00:53]} Rg8 {[%emt 0:02:41]} 23. a4 {[%emt 0:05:32]} Ke7 {[%emt 0:01:26]} 24. Bb4+ {[%emt 0:01:11]} Kd8 {[%emt 0:00:01]} 25. Bf1 {[%emt 0:00:57]} a5 {[%emt 0:02:24]} 26. Bd6 {[%emt 0:01:51]} Bc7 {[%emt 0:00:06]} 27. Ba3 {[%emt 0:00:07]} Nb6 {[%emt 0:02:24]} 28. Bb5 {[%emt 0:00:26]} Nc8 {[%emt 0:02:00]} 29. Bd3 {[%emt 0:02:04]} f5 {[%emt 0:02:13]} 30. Rb7 {[%emt 0:01:23]} Nb6 {[%emt 0:00:44]} 31. Bd6 {[%emt 0:02:32]} Bxd6 {[%emt 0:00:03]} 32. Rxb6 {[%emt 0:00:05]} Ke7 {[%emt 0:01:10]} 33. Rb7+ {[%emt 0:01:31]} Kf6 {[%emt 0:00:02]} 34. Rxh7 {[%emt 0:00:15]} Be7 {[%emt 0:00:06]} 35. Bb5 {[%emt 0:01:50]} Rb8 {[%emt 0:00:51]} 36. Kg2 {[%emt 0:03:08]} Ra8 {[%emt 0:00:18]} 37. h3 {[%emt 0:00:44]} Rg8 {[%emt 0:00:15]} 38. Kf3 {[%emt 0:00:34]} Rf8 {[%emt 0:00:08]} 39. Ke2 {[%emt 0:01:36]} Rg8 {[%emt 0:00:14]} 40. Kd3 {[%emt 0:01:00]} Rf8 {[%emt 0:00:13]} 41. g4 {[%emt 0:31:23]} Bb4 {[%emt 0:31:27]} 42. f4 {[%emt 0:04:28]} Kg6 {[%emt 0:00:14]} 43. Rc7 {[%emt 0:02:21]} Rh8 {[%emt 0:04:40]} 44. Bd7 {[%emt 0:02:17]} 1-0

[Event "Netanya Open 2019"]
[Site "Netanya"]
[Date "2019.07.01"]
[Round "8.22"]
[White "Bilych, Olexiy"]
[Black "Emanuel, Yahav"]
[Result "0-1"]
[ECO "C77"]
[WhiteElo "2203"]
[BlackElo "2359"]
[Annotator "NA"]
[PlyCount "58"]
[EventDate "2019.06.23"]
[EventType "swiss"]
[EventCountry "ISR"]
[SourceTitle "playchess.com"]
[Source "ChessBase"]
[SourceQuality "1"]
[TimeControl "40/5400+30:1800+30"]

1. e4 {[%emt 0:00:00]} e5 {[%emt 0:00:00]} 2. Nf3 {[%emt 0:00:00]} Nc6 {[%emt 0:00:00]} 3. Bb5 {[%emt 0:00:00]} a6 {[%emt 0:00:08]} 4. Ba4 {[%emt 0:00:00]} Nf6 {[%emt 0:00:09]} 5. d3 {[%emt 0:00:00]} d6 {[%emt 0:00:16]} 6. c3 {[%emt 0:00:25]} g6 {[%emt 0:00:11]} 7. O-O {[%emt 0:00:07]} Bg7 {[%emt 0:00:06]} 8. h3 {[%emt 0:00:14]} O-O {[%emt 0:00:15]} 9. Be3 {[%emt 0:01:30]} Bd7 {[%emt 0:06:45]} 10. Nbd2 {[%emt 0:00:43]} Qe7 {[%emt 0:01:01]} 11. Re1 {[%emt 0:03:48]} Rae8 {[%emt 0:11:18]} 12. Bc2 {[%emt 0:08:14]} Nh5 {[%emt 0:08:16]} 13. d4 {[%emt 0:07:30]} Nd8 {[%emt 0:15:35]} 14. d5 {[%emt 0:14:06]} f5 {[%emt 0:12:21]} 15. exf5 {[%emt 0:00:19]} Bxf5 {[%emt 0:00:13]} 16. Bxf5 {[%emt 0:01:31]} gxf5 {[%emt 0:00:02]} 17. Nxe5 {[%emt 0:06:59]} dxe5 {[%emt 0:05:52]} 18. Qxh5 {[%emt 0:02:03]} f4 {[%emt 0:00:51]} 19. Bd4 {[%emt 0:00:13]} Qd6 {[%emt 0:21:16]} 20. Nc4 {[%emt 0:04:19]} Qxd5 {[%emt 0:00:13]} 21. Rxe5 {[%emt 0:00:17]} Rxe5 {[%emt 0:01:39]} 22. Bxe5 {[%emt 0:04:03]} Nf7 {[%emt 0:03:18]} 23. Rd1 {[%emt 0:02:21]} Qxc4 {[%emt 0:00:27]} 24. Bxg7 {[%emt 0:00:36]} Kxg7 {[%emt 0:00:04]} 25. Rd5 {[%emt 0:03:29]} Qxa2 {[%emt 0:04:45]} 26. Qg4+ {[%emt 0:05:04]} Kh8 {[%emt 0:00:12]} 27. Rf5 {[%emt 0:09:15]} Qb1+ {[%emt 0:02:01]} 28. Kh2 {[%emt 0:00:06]} Qe4 {[%emt 0:00:35]} 29. Qh5 {[%emt 0:07:34]} Rg8 {[%emt 0:01:43]} 0-1